[Event "Betsys MČR v online bleskovém šachu 2021"]
[Site "Chess.com"]
[Date "2021.04.17"]
[Round "1"]
[White "feela1"]
[Black "Soural_J"]
[Result "0-1"]
[WhiteElo "1505"]
[BlackElo "2164"]
[TimeControl "180+1"]
[EndTime "9:08:19 PDT"]
[Termination "Uživatel Soural_J zvítězil matem"]

1. e4 {[%clk 0:02:59.2]} 1... c5 {[%clk 0:02:58]} 2. Nf3 {[%clk 0:02:58.2]} 2...
Nc6 {[%clk 0:02:57.7]} 3. Bc4 {[%clk 0:02:57.1]} 3... e6 {[%clk 0:02:54.2]} 4.
d3 {[%clk 0:02:54.1]} 4... d5 {[%clk 0:02:53.1]} 5. exd5 {[%clk 0:02:49.5]} 5...
exd5 {[%clk 0:02:54]} 6. Bb5 {[%clk 0:02:47.9]} 6... Bd7 {[%clk 0:02:53.9]} 7.
Bf4 {[%clk 0:02:41.3]} 7... Nf6 {[%clk 0:02:51.4]} 8. O-O {[%clk 0:02:39.4]}
8... Be7 {[%clk 0:02:50.7]} 9. Re1 {[%clk 0:02:38.2]} 9... O-O {[%clk
0:02:50.1]} 10. Nbd2 {[%clk 0:02:27]} 10... Re8 {[%clk 0:02:49.2]} 11. Bxc6
{[%clk 0:02:17.3]} 11... Bxc6 {[%clk 0:02:48.2]} 12. Ne5 {[%clk 0:02:12.1]}
12... Rc8 {[%clk 0:02:43.3]} 13. Nxc6 {[%clk 0:02:10.2]} 13... Rxc6 {[%clk
0:02:40.9]} 14. Nf3 {[%clk 0:02:07.1]} 14... Bd6 {[%clk 0:02:34.2]} 15. Bxd6
{[%clk 0:02:05.3]} 15... Rxd6 {[%clk 0:02:30.9]} 16. Rxe8+ {[%clk 0:02:02.6]}
16... Qxe8 {[%clk 0:02:30.3]} 17. Qe1 {[%clk 0:01:56.6]} 17... Re6 {[%clk
0:02:28.9]} 18. Qd2 {[%clk 0:01:54.7]} 18... b6 {[%clk 0:02:11.1]} 19. Re1
{[%clk 0:01:49]} 19... d4 {[%clk 0:02:10.8]} 20. Rxe6 {[%clk 0:01:47.8]} 20...
Qxe6 {[%clk 0:02:11.7]} 21. b3 {[%clk 0:01:40]} 21... Nd5 {[%clk 0:02:08.7]} 22.
a4 {[%clk 0:01:31.2]} 22... f6 {[%clk 0:02:01.7]} 23. h3 {[%clk 0:01:18.5]}
23... Kf7 {[%clk 0:02:01.2]} 24. Qe1 {[%clk 0:01:06.8]} 24... Nb4 {[%clk
0:01:50.4]} 25. Qxe6+ {[%clk 0:00:45.6]} 25... Kxe6 {[%clk 0:01:51.3]} 26. Ne1
{[%clk 0:00:44.5]} 26... h5 {[%clk 0:01:32.6]} 27. Kf1 {[%clk 0:00:43.7]} 27...
g5 {[%clk 0:01:28.7]} 28. Ke2 {[%clk 0:00:43.2]} 28... Kd5 {[%clk 0:01:23]} 29.
Kf3 {[%clk 0:00:40.8]} 29... a6 {[%clk 0:01:17.8]} 30. g4 {[%clk 0:00:38.8]}
30... h4 {[%clk 0:01:14.7]} 31. Ke2 {[%clk 0:00:33.2]} 31... Ke5 {[%clk
0:01:12]} 32. Kf3 {[%clk 0:00:31.2]} 32... b5 {[%clk 0:01:07.8]} 33. axb5 {[%clk
0:00:29.2]} 33... axb5 {[%clk 0:01:08.7]} 34. Ke2 {[%clk 0:00:23.7]} 34... Nd5
{[%clk 0:00:55.3]} 35. f3 {[%clk 0:00:19.3]} 35... Nf4+ {[%clk 0:00:53.3]} 36.
Kf2 {[%clk 0:00:19.2]} 36... Nxh3+ {[%clk 0:00:52.9]} 37. Kg2 {[%clk 0:00:19]}
37... Nf4+ {[%clk 0:00:52.6]} 38. Kf2 {[%clk 0:00:18.8]} 38... Nd5 {[%clk
0:00:49.8]} 39. Kg2 {[%clk 0:00:17.7]} 39... Ne3+ {[%clk 0:00:39.2]} 40. Kf2
{[%clk 0:00:15.3]} 40... Kf4 {[%clk 0:00:39.2]} 41. Ng2+ {[%clk 0:00:14]} 41...
Nxg2 {[%clk 0:00:38.1]} 42. Kxg2 {[%clk 0:00:13.6]} 42... Ke3 {[%clk 0:00:38.2]}
43. Kf1 {[%clk 0:00:12]} 43... Kxf3 {[%clk 0:00:37.6]} 44. Kg1 {[%clk
0:00:10.3]} 44... Kxg4 {[%clk 0:00:36]} 45. Kg2 {[%clk 0:00:10.1]} 45... h3+
{[%clk 0:00:33.7]} 46. Kh2 {[%clk 0:00:10.1]} 46... f5 {[%clk 0:00:31.5]} 47.
Kh1 {[%clk 0:00:09.5]} 47... Kg3 {[%clk 0:00:31.1]} 48. Kg1 {[%clk 0:00:08.9]}
48... f4 {[%clk 0:00:31.1]} 49. Kh1 {[%clk 0:00:09]} 49... f3 {[%clk 0:00:30.4]}
50. Kg1 {[%clk 0:00:09]} 50... h2+ {[%clk 0:00:30.4]} 51. Kh1 {[%clk 0:00:09.2]}
51... f2 {[%clk 0:00:29.7]} 52. c3 {[%clk 0:00:08.9]} 52... f1=Q# {[%clk
0:00:29]} 0-1

[Event "Betsys MČR v online bleskovém šachu 2021"]
[Site "Chess.com"]
[Date "2021.04.17"]
[Round "1"]
[White "p_kana"]
[Black "MartinCerveny"]
[Result "0-1"]
[WhiteElo "1803"]
[BlackElo "2666"]
[TimeControl "180+1"]
[EndTime "9:08:21 PDT"]
[Termination "Uživatel MartinCerveny zvítězil na čas"]

1. e4 {[%clk 0:02:59.4]} 1... c5 {[%clk 0:02:59.9]} 2. Nf3 {[%clk 0:02:56.3]}
2... d6 {[%clk 0:03:00.1]} 3. d4 {[%clk 0:02:55.8]} 3... cxd4 {[%clk 0:03:00.6]}
4. Qxd4 {[%clk 0:02:56.2]} 4... Nc6 {[%clk 0:02:59.8]} 5. Bb5 {[%clk 0:02:54.8]}
5... Qb6 {[%clk 0:02:59.8]} 6. Nc3 {[%clk 0:02:17.3]} 6... Qxd4 {[%clk
0:02:57.9]} 7. Nxd4 {[%clk 0:02:16.6]} 7... Bd7 {[%clk 0:02:58.1]} 8. Be3 {[%clk
0:02:04.2]} 8... Nf6 {[%clk 0:02:52.4]} 9. O-O-O {[%clk 0:01:51.9]} 9... a6
{[%clk 0:02:42.4]} 10. Be2 {[%clk 0:01:41.9]} 10... Nxd4 {[%clk 0:02:29.6]} 11.
Bxd4 {[%clk 0:01:41.2]} 11... e5 {[%clk 0:02:29.4]} 12. Bb6 {[%clk 0:01:36.3]}
12... Rc8 {[%clk 0:02:26.4]} 13. f3 {[%clk 0:01:29.5]} 13... Be7 {[%clk
0:02:17.9]} 14. Kb1 {[%clk 0:01:23.3]} 14... O-O {[%clk 0:02:11.5]} 15. Nd5
{[%clk 0:01:17.9]} 15... Nxd5 {[%clk 0:02:09.4]} 16. Rxd5 {[%clk 0:01:18.8]}
16... f5 {[%clk 0:02:06]} 17. Rdd1 {[%clk 0:00:48.4]} 17... fxe4 {[%clk
0:02:04.6]} 18. fxe4 {[%clk 0:00:47.9]} 18... Be6 {[%clk 0:01:57]} 19. Rhf1
{[%clk 0:00:41.9]} 19... g6 {[%clk 0:01:32.7]} 20. Rxf8+ {[%clk 0:00:41]} 20...
Rxf8 {[%clk 0:01:32.6]} 21. Rf1 {[%clk 0:00:40.7]} 21... Rf4 {[%clk 0:01:22.2]}
22. Bf3 {[%clk 0:00:36.9]} 22... h5 {[%clk 0:01:09.6]} 23. h3 {[%clk 0:00:35.4]}
23... g5 {[%clk 0:01:03.2]} 24. Be3 {[%clk 0:00:33.5]} 24... Rf8 {[%clk
0:00:59.6]} 25. Be2 {[%clk 0:00:29.6]} 25... Rxf1+ {[%clk 0:00:47.5]} 26. Bxf1
{[%clk 0:00:30.5]} 26... g4 {[%clk 0:00:45.3]} 27. hxg4 {[%clk 0:00:28.8]} 27...
Bxg4 {[%clk 0:00:45.1]} 28. Kc1 {[%clk 0:00:24.4]} 28... Kf7 {[%clk 0:00:45.3]}
29. Kd2 {[%clk 0:00:22.6]} 29... Kg6 {[%clk 0:00:45.2]} 30. Be2 {[%clk
0:00:18.9]} 30... Be6 {[%clk 0:00:41.2]} 31. c4 {[%clk 0:00:17.5]} 31... Bg5
{[%clk 0:00:36.2]} 32. b3 {[%clk 0:00:14.5]} 32... h4 {[%clk 0:00:36.1]} 33. Bf3
{[%clk 0:00:12.6]} 33... Bf4 {[%clk 0:00:31.3]} 34. Ke2 {[%clk 0:00:10.7]} 34...
Kg5 {[%clk 0:00:31.3]} 35. Kf2 {[%clk 0:00:09]} 35... h3 {[%clk 0:00:26.1]} 36.
gxh3 {[%clk 0:00:08.2]} 36... Bxh3 {[%clk 0:00:26]} 37. Bb6 {[%clk 0:00:07.7]}
37... Kg6 {[%clk 0:00:20]} 38. Bc7 {[%clk 0:00:06.2]} 38... Bd7 {[%clk
0:00:17.4]} 39. Bxd6 {[%clk 0:00:05.6]} 39... Kf6 {[%clk 0:00:16.3]} 40. Ke2
{[%clk 0:00:05.1]} 40... Ke6 {[%clk 0:00:16.1]} 41. Bf8 {[%clk 0:00:05.2]} 41...
Bc6 {[%clk 0:00:16]} 42. Kd3 {[%clk 0:00:04.8]} 42... Kd7 {[%clk 0:00:15.9]} 43.
b4 {[%clk 0:00:04.8]} 43... b5 {[%clk 0:00:15.1]} 44. cxb5 {[%clk 0:00:02.2]}
44... Bxb5+ {[%clk 0:00:14.8]} 45. Kc3 {[%clk 0:00:02.6]} 45... Kc6 {[%clk
0:00:14.9]} 0-1

[Event "Betsys MČR v online bleskovém šachu 2021"]
[Site "Chess.com"]
[Date "2021.04.17"]
[Round "1"]
[White "ZdenekRomanek"]
[Black "horvi1"]
[Result "0-1"]
[WhiteElo "1606"]
[BlackElo "2231"]
[TimeControl "180+1"]
[EndTime "9:08:21 PDT"]
[Termination "Uživatel horvi1 zvítězil na čas"]

1. d4 {[%clk 0:03:00.6]} 1... Nf6 {[%clk 0:02:59.7]} 2. c4 {[%clk 0:02:59.7]}
2... e6 {[%clk 0:02:59.3]} 3. Nc3 {[%clk 0:02:57.4]} 3... Bb4 {[%clk 0:02:58.4]}
4. Nf3 {[%clk 0:02:51.6]} 4... O-O {[%clk 0:02:56.7]} 5. e3 {[%clk 0:02:50.9]}
5... d5 {[%clk 0:02:56.1]} 6. Bd3 {[%clk 0:02:49.8]} 6... b6 {[%clk 0:02:54.6]}
7. cxd5 {[%clk 0:02:48.2]} 7... exd5 {[%clk 0:02:53.4]} 8. O-O {[%clk
0:02:47.1]} 8... Bg4 {[%clk 0:02:50.5]} 9. a3 {[%clk 0:02:40.4]} 9... Bd6 {[%clk
0:02:45]} 10. b4 {[%clk 0:02:35.4]} 10... c5 {[%clk 0:02:31.5]} 11. bxc5 {[%clk
0:02:29.4]} 11... bxc5 {[%clk 0:02:31.3]} 12. Bb2 {[%clk 0:02:25.7]} 12... c4
{[%clk 0:02:29.7]} 13. Bb1 {[%clk 0:02:21.1]} 13... Bc7 {[%clk 0:02:21.1]} 14.
h3 {[%clk 0:02:19.5]} 14... Bh5 {[%clk 0:02:18.8]} 15. Nb5 {[%clk 0:02:03.5]}
15... Bb6 {[%clk 0:02:11.6]} 16. a4 {[%clk 0:01:55.2]} 16... a6 {[%clk
0:02:11.2]} 17. Nc3 {[%clk 0:01:54]} 17... Bc7 {[%clk 0:02:01.1]} 18. Ba3 {[%clk
0:01:38.9]} 18... Re8 {[%clk 0:02:00.2]} 19. Bc5 {[%clk 0:01:36]} 19... Nbd7
{[%clk 0:01:56.2]} 20. Bc2 {[%clk 0:01:28.5]} 20... Nxc5 {[%clk 0:01:55.4]} 21.
dxc5 {[%clk 0:01:27.2]} 21... Ba5 {[%clk 0:01:24.1]} 22. Ne2 {[%clk 0:01:15.5]}
22... Bxf3 {[%clk 0:01:15.4]} 23. gxf3 {[%clk 0:01:14.6]} 23... Qc7 {[%clk
0:01:02.9]} 24. Qd4 {[%clk 0:01:09.7]} 24... Rac8 {[%clk 0:00:58.9]} 25. Qh4
{[%clk 0:00:55.9]} 25... Qxc5 {[%clk 0:00:55]} 26. Nd4 {[%clk 0:00:54.4]} 26...
Bd8 {[%clk 0:00:47.7]} 27. Qg3 {[%clk 0:00:48.4]} 27... Bc7 {[%clk 0:00:43.5]}
28. Qg5 {[%clk 0:00:43.2]} 28... Re5 {[%clk 0:00:40.5]} 29. Nf5 {[%clk
0:00:34.6]} 29... Qf8 {[%clk 0:00:37.3]} 30. Qg2 {[%clk 0:00:29.5]} 30... Kh8
{[%clk 0:00:35.2]} 31. f4 {[%clk 0:00:24.3]} 31... Re6 {[%clk 0:00:33.6]} 32.
Nd4 {[%clk 0:00:22.1]} 32... Rb6 {[%clk 0:00:30.3]} 33. Rab1 {[%clk 0:00:19.7]}
33... Rcb8 {[%clk 0:00:26.9]} 34. Rxb6 {[%clk 0:00:17.9]} 34... Rxb6 {[%clk
0:00:26.8]} 35. Rb1 {[%clk 0:00:17]} 35... Rxb1+ {[%clk 0:00:25.9]} 36. Bxb1
{[%clk 0:00:15.9]} 36... Qb4 {[%clk 0:00:25.1]} 37. Bf5 {[%clk 0:00:13]} 37...
g6 {[%clk 0:00:18.6]} 38. Bc2 {[%clk 0:00:09.6]} 38... Qd2 {[%clk 0:00:15.2]}
39. Qg3 {[%clk 0:00:04.2]} 39... Qc1+ {[%clk 0:00:10.4]} 40. Kg2 {[%clk
0:00:02.8]} 40... Qa3 {[%clk 0:00:07.1]} 0-1

[Event "Betsys MČR v online bleskovém šachu 2021"]
[Site "Chess.com"]
[Date "2021.04.17"]
[Round "1"]
[White "OndrejBorkovec"]
[Black "JohnnyDuck64"]
[Result "1/2-1/2"]
[WhiteElo "1508"]
[BlackElo "2132"]
[TimeControl "180+1"]
[EndTime "9:08:22 PDT"]
[Termination "Remíza opakováním pozice"]

1. d4 {[%clk 0:03:00.8]} 1... d5 {[%clk 0:02:59.4]} 2. Bf4 {[%clk 0:02:59.1]}
2... Nf6 {[%clk 0:02:57]} 3. Nf3 {[%clk 0:02:58.1]} 3... g6 {[%clk 0:02:56.3]}
4. e3 {[%clk 0:02:56.8]} 4... Bg7 {[%clk 0:02:56.3]} 5. Bd3 {[%clk 0:02:56.4]}
5... O-O {[%clk 0:02:56.2]} 6. O-O {[%clk 0:02:56]} 6... c5 {[%clk 0:02:55.8]}
7. c4 {[%clk 0:02:52.4]} 7... dxc4 {[%clk 0:02:44.3]} 8. Bxc4 {[%clk 0:02:52.3]}
8... Nc6 {[%clk 0:02:44.3]} 9. Nc3 {[%clk 0:02:47.7]} 9... cxd4 {[%clk
0:02:29.9]} 10. Nxd4 {[%clk 0:02:44.3]} 10... Nxd4 {[%clk 0:02:11.2]} 11. Qxd4
{[%clk 0:02:35.5]} 11... Bf5 {[%clk 0:02:02.7]} 12. Rfd1 {[%clk 0:02:24.4]}
12... Ne4 {[%clk 0:01:38.4]} 13. Qxd8 {[%clk 0:02:06.6]} 13... Rfxd8 {[%clk
0:01:39.3]} 14. Nxe4 {[%clk 0:02:03.9]} 14... Bxe4 {[%clk 0:01:38.4]} 15. Rac1
{[%clk 0:01:50.9]} 15... Bxb2 {[%clk 0:01:31]} 16. Rxd8+ {[%clk 0:01:44.2]}
16... Rxd8 {[%clk 0:01:30.2]} 17. Re1 {[%clk 0:01:39.5]} 17... a6 {[%clk
0:01:22.9]} 18. f3 {[%clk 0:01:34.8]} 18... Bc6 {[%clk 0:01:18.7]} 19. e4 {[%clk
0:01:33.5]} 19... Bd4+ {[%clk 0:01:07.6]} 20. Kf1 {[%clk 0:01:32.1]} 20... e5
{[%clk 0:01:07.1]} 21. Bg5 {[%clk 0:01:28.5]} 21... Rc8 {[%clk 0:01:07.2]} 22.
Rd1 {[%clk 0:01:19.7]} 22... Kg7 {[%clk 0:01:05.8]} 23. Ke2 {[%clk 0:01:17.9]}
23... Ba4 {[%clk 0:00:59.5]} 24. Rc1 {[%clk 0:01:15.9]} 24... b5 {[%clk
0:00:52.5]} 25. Bb3 {[%clk 0:01:15.1]} 25... Rxc1 {[%clk 0:00:40.8]} 26. Bxc1
{[%clk 0:01:13.6]} 26... Bxb3 {[%clk 0:00:40.6]} 27. axb3 {[%clk 0:01:13.9]}
27... Kf6 {[%clk 0:00:38.4]} 28. h3 {[%clk 0:01:13.4]} 28... h5 {[%clk
0:00:36.1]} 29. g4 {[%clk 0:01:11.1]} 29... hxg4 {[%clk 0:00:34.6]} 30. hxg4
{[%clk 0:01:11.7]} 30... Ke6 {[%clk 0:00:34.8]} 31. Kd3 {[%clk 0:01:11.4]} 31...
f5 {[%clk 0:00:28.9]} 32. gxf5+ {[%clk 0:01:09.9]} 32... gxf5 {[%clk 0:00:29.8]}
33. exf5+ {[%clk 0:01:07.8]} 33... Kxf5 {[%clk 0:00:30.7]} 34. Bd2 {[%clk
0:01:04.4]} 34... Bc5 {[%clk 0:00:20.1]} 35. Bc1 {[%clk 0:00:57.5]} 35... Be7
{[%clk 0:00:14.5]} 36. Bd2 {[%clk 0:00:52.4]} 36... Bh4 {[%clk 0:00:13.2]} 37.
Bc1 {[%clk 0:00:47.3]} 37... Bg3 {[%clk 0:00:12.6]} 38. Bd2 {[%clk 0:00:47.2]}
38... Bf4 {[%clk 0:00:12.4]} 39. Bc3 {[%clk 0:00:47.4]} 39... Ke6 {[%clk
0:00:09.2]} 40. Ke4 {[%clk 0:00:47.3]} 40... Bg3 {[%clk 0:00:09]} 41. Bb4 {[%clk
0:00:46.3]} 41... Bf2 {[%clk 0:00:07.5]} 42. Bc3 {[%clk 0:00:45.3]} 42... Bg3
{[%clk 0:00:07.3]} 43. Bb4 {[%clk 0:00:44.9]} 43... Kf6 {[%clk 0:00:06.9]} 44.
Bc5 {[%clk 0:00:41.9]} 44... Bf4 {[%clk 0:00:06.1]} 45. Bb6 {[%clk 0:00:41.1]}
45... Ke6 {[%clk 0:00:06.3]} 46. Ba5 {[%clk 0:00:41.2]} 46... Kd6 {[%clk
0:00:06]} 47. Bb4+ {[%clk 0:00:39.9]} 47... Ke6 {[%clk 0:00:05.9]} 48. Ba3
{[%clk 0:00:38.9]} 48... Bg5 {[%clk 0:00:05.5]} 49. Bb2 {[%clk 0:00:36.6]} 49...
Bf6 {[%clk 0:00:05.8]} 50. Bc3 {[%clk 0:00:32]} 50... Bg7 {[%clk 0:00:03.8]} 51.
Bb2 {[%clk 0:00:31.6]} 51... Bf6 {[%clk 0:00:03.8]} 52. Bc3 {[%clk 0:00:31]}
52... Bg7 {[%clk 0:00:03.3]} 53. Bb2 {[%clk 0:00:29.5]} 53... Bf6 {[%clk
0:00:03.5]} 1/2-1/2

[Event "Betsys MČR v online bleskovém šachu 2021"]
[Site "Chess.com"]
[Date "2021.04.17"]
[Round "1"]
[White "jonasstach"]
[Black "HerjoAnpe"]
[Result "1-0"]
[WhiteElo "2007"]
[BlackElo "1248"]
[TimeControl "180+1"]
[EndTime "9:08:22 PDT"]
[Termination "Uživatel jonasstach zvítězil po vzdání soupeře"]

1. d4 {[%clk 0:03:00.4]} 1... d5 {[%clk 0:02:59.2]} 2. Bf4 {[%clk 0:03:01.1]}
2... e6 {[%clk 0:02:57.4]} 3. c3 {[%clk 0:03:01.6]} 3... c5 {[%clk 0:02:55.8]}
4. Nf3 {[%clk 0:03:02.2]} 4... c4 {[%clk 0:02:55.2]} 5. Bg5 {[%clk 0:03:01.7]}
5... Nf6 {[%clk 0:02:54.4]} 6. e3 {[%clk 0:03:01.3]} 6... Be7 {[%clk 0:02:54.4]}
7. Nbd2 {[%clk 0:03:01.6]} 7... O-O {[%clk 0:02:54.3]} 8. h3 {[%clk 0:03:01.4]}
8... Nc6 {[%clk 0:02:51.3]} 9. Be2 {[%clk 0:03:01]} 9... Qb6 {[%clk 0:02:51]}
10. Qc2 {[%clk 0:02:58.4]} 10... Bd7 {[%clk 0:02:48.5]} 11. O-O {[%clk
0:02:57.4]} 11... h6 {[%clk 0:02:43.5]} 12. Bf4 {[%clk 0:02:56.3]} 12... Na5
{[%clk 0:02:40.1]} 13. Ne5 {[%clk 0:02:52.2]} 13... Bb5 {[%clk 0:02:35.4]} 14.
Rfb1 {[%clk 0:02:38.6]} 14... Nc6 {[%clk 0:02:33.1]} 15. a4 {[%clk 0:02:30.9]}
15... Nxe5 {[%clk 0:02:29]} 16. Bxe5 {[%clk 0:02:25.4]} 16... Bd7 {[%clk
0:02:24.2]} 17. a5 {[%clk 0:02:21.3]} 17... Qd8 {[%clk 0:02:23]} 18. b3 {[%clk
0:02:11.9]} 18... b5 {[%clk 0:02:19.9]} 19. b4 {[%clk 0:02:04.6]} 19... a6
{[%clk 0:02:19.5]} 20. Qd1 {[%clk 0:02:00]} 20... Bc8 {[%clk 0:02:16.5]} 21. Bg4
{[%clk 0:01:54.6]} 21... Bd6 {[%clk 0:02:15.2]} 22. f4 {[%clk 0:01:48.6]} 22...
Nxg4 {[%clk 0:02:12]} 23. Qxg4 {[%clk 0:01:46.3]} 23... Bxe5 {[%clk 0:02:11.5]}
24. fxe5 {[%clk 0:01:47.2]} 24... f6 {[%clk 0:02:04]} 25. Nf3 {[%clk 0:01:40]}
25... f5 {[%clk 0:02:00.1]} 26. Qg3 {[%clk 0:01:37.8]} 26... Rf7 {[%clk
0:01:52.4]} 27. Rf1 {[%clk 0:01:37.6]} 27... Bd7 {[%clk 0:01:49.1]} 28. Ra2
{[%clk 0:01:36.7]} 28... Be8 {[%clk 0:01:48.1]} 29. Raf2 {[%clk 0:01:32.3]}
29... Rc7 {[%clk 0:01:44.7]} 30. Nh4 {[%clk 0:01:30.7]} 30... Qg5 {[%clk
0:01:37]} 31. Qxg5 {[%clk 0:01:22.2]} 31... hxg5 {[%clk 0:01:36.9]} 32. Nf3
{[%clk 0:01:22.9]} 32... g4 {[%clk 0:01:34.5]} 33. hxg4 {[%clk 0:01:23]} 33...
fxg4 {[%clk 0:01:34.6]} 34. Ng5 {[%clk 0:01:15.5]} 34... Bh5 {[%clk 0:01:26]}
35. Nxe6 {[%clk 0:01:12.5]} 35... Rb7 {[%clk 0:01:21.1]} 36. Rf8+ {[%clk
0:00:57.1]} 36... Rxf8 {[%clk 0:01:18]} 37. Rxf8+ {[%clk 0:00:58]} 37... Kh7
{[%clk 0:01:11.2]} 38. Rd8 {[%clk 0:00:52.1]} 38... Bf7 {[%clk 0:01:04.7]} 39.
Ng5+ {[%clk 0:00:50.2]} 39... Kg6 {[%clk 0:01:03.1]} 40. Nxf7 {[%clk 0:00:48]}
40... Kxf7 {[%clk 0:00:57.7]} 41. Rxd5 {[%clk 0:00:47.8]} 41... Kg6 {[%clk
0:00:54]} 42. Kf2 {[%clk 0:00:42.5]} 42... Kf5 {[%clk 0:00:53.8]} 43. Rd6 {[%clk
0:00:35]} 43... Ra7 {[%clk 0:00:49.9]} 44. Kg3 {[%clk 0:00:24.9]} 44... Ke4
{[%clk 0:00:49.4]} 45. e6 {[%clk 0:00:21]} 45... Kxe3 {[%clk 0:00:47.7]} 46. Rd7
{[%clk 0:00:20.9]} 46... Ra8 {[%clk 0:00:43.2]} 47. e7 {[%clk 0:00:20.6]} 47...
Re8 {[%clk 0:00:40.7]} 48. d5 {[%clk 0:00:20.9]} 48... Kd3 {[%clk 0:00:38.7]}
49. d6 {[%clk 0:00:21.1]} 49... Kxc3 {[%clk 0:00:38.6]} 50. Rd8 {[%clk
0:00:21.8]} 50... Kxb4 {[%clk 0:00:34.1]} 51. Rxe8 {[%clk 0:00:21.4]} 51... c3
{[%clk 0:00:34.3]} 52. Rc8 {[%clk 0:00:21.7]} 52... Kb3 {[%clk 0:00:31.9]} 53.
e8=Q {[%clk 0:00:21.6]} 53... c2 {[%clk 0:00:32.1]} 54. Qe3+ {[%clk 0:00:21.6]}
54... Kb2 {[%clk 0:00:31.5]} 55. Qd2 {[%clk 0:00:21.7]} 55... b4 {[%clk
0:00:26.5]} 56. Qxc2+ {[%clk 0:00:22.1]} 1-0

[Event "Betsys MČR v online bleskovém šachu 2021"]
[Site "Chess.com"]
[Date "2021.04.17"]
[Round "1"]
[White "milanpetras"]
[Black "KarelZalesky"]
[Result "0-1"]
[WhiteElo "1830"]
[BlackElo "1096"]
[TimeControl "180+1"]
[EndTime "9:08:22 PDT"]
[Termination "Uživatel KarelZalesky zvítězil na čas"]

1. e4 {[%clk 0:02:38.2]} 1... c5 {[%clk 0:02:57.8]} 2. c3 {[%clk 0:02:27.4]}
2... e6 {[%clk 0:02:50.1]} 3. d4 {[%clk 0:02:26.7]} 3... d5 {[%clk 0:02:47.5]}
4. e5 {[%clk 0:02:25.1]} 4... Nc6 {[%clk 0:02:46.1]} 5. Nf3 {[%clk 0:02:25]}
5... Nge7 {[%clk 0:02:42.5]} 6. Bd3 {[%clk 0:02:18.4]} 6... cxd4 {[%clk
0:02:29.5]} 7. cxd4 {[%clk 0:02:16.4]} 7... Bd7 {[%clk 0:02:29.3]} 8. O-O {[%clk
0:02:15.1]} 8... Nf5 {[%clk 0:02:12.3]} 9. Bxf5 {[%clk 0:01:58.3]} 9... exf5
{[%clk 0:02:11.7]} 10. Bg5 {[%clk 0:01:51.1]} 10... Be7 {[%clk 0:02:02.3]} 11.
h4 {[%clk 0:01:42.3]} 11... h6 {[%clk 0:02:01.1]} 12. Bxe7 {[%clk 0:01:41.3]}
12... Qxe7 {[%clk 0:02:01.1]} 13. Nc3 {[%clk 0:01:40.8]} 13... Be6 {[%clk
0:02:01.1]} 14. Qb3 {[%clk 0:01:38.6]} 14... Rd8 {[%clk 0:01:52.1]} 15. Nb5
{[%clk 0:01:32.6]} 15... O-O {[%clk 0:01:47.7]} 16. Nd6 {[%clk 0:01:32.2]} 16...
Rd7 {[%clk 0:01:41.7]} 17. Rfd1 {[%clk 0:01:25.7]} 17... g5 {[%clk 0:01:28.2]}
18. hxg5 {[%clk 0:01:19.6]} 18... hxg5 {[%clk 0:01:27.7]} 19. g3 {[%clk
0:01:00.1]} 19... Kg7 {[%clk 0:01:23.8]} 20. Kg2 {[%clk 0:00:58]} 20... b6
{[%clk 0:00:58.3]} 21. Qd3 {[%clk 0:00:51]} 21... Rxd6 {[%clk 0:00:41.2]} 22.
exd6 {[%clk 0:00:49.4]} 22... Qxd6 {[%clk 0:00:41.5]} 23. a3 {[%clk 0:00:40]}
23... Ne7 {[%clk 0:00:18.8]} 24. Ne5 {[%clk 0:00:30.6]} 24... Ng6 {[%clk
0:00:16.1]} 25. Nxg6 {[%clk 0:00:27.2]} 25... Kxg6 {[%clk 0:00:13.1]} 26. f3
{[%clk 0:00:22.8]} 26... Kf6 {[%clk 0:00:11.5]} 27. Re1 {[%clk 0:00:20.3]} 27...
Rc8 {[%clk 0:00:08.6]} 28. Rac1 {[%clk 0:00:18.9]} 28... Rc4 {[%clk 0:00:07.2]}
29. Qe3 {[%clk 0:00:15.4]} 29... f4 {[%clk 0:00:03.2]} 30. gxf4 {[%clk
0:00:13.7]} 30... gxf4 {[%clk 0:00:02.4]} 31. Qe5+ {[%clk 0:00:13.9]} 31... Qxe5
{[%clk 0:00:02.3]} 32. dxe5+ {[%clk 0:00:14.6]} 32... Kf5 {[%clk 0:00:02.2]} 33.
Rxc4 {[%clk 0:00:12.5]} 33... dxc4 {[%clk 0:00:02.4]} 34. Kf2 {[%clk 0:00:12]}
34... b5 {[%clk 0:00:01.7]} 35. Rd1 {[%clk 0:00:11.3]} 35... a5 {[%clk 0:00:02]}
36. Rd6 {[%clk 0:00:05.5]} 36... Kxe5 {[%clk 0:00:01.9]} 37. Rb6 {[%clk
0:00:04.3]} 37... b4 {[%clk 0:00:01.2]} 38. axb4 {[%clk 0:00:03.4]} 38... axb4
{[%clk 0:00:01.6]} 39. Rxb4 {[%clk 0:00:03.9]} 39... Kd4 {[%clk 0:00:02]} 40.
Rb8 {[%clk 0:00:01.7]} 40... Kd3 {[%clk 0:00:01.6]} 0-1